[Event "80th ARM-ch 1st League 2019"]
[Site "Yerevan"]
[Date "2019.08.18"]
[Round "1.1"]
[White "Chaqryan, Erik"]
[Black "Davtyan, Artur"]
[Result "0-1"]
[ECO "D31"]
[WhiteElo "2105"]
[BlackElo "2440"]
[Annotator "ChessBase"]
[PlyCount "96"]
[EventDate "2019.08.18"]
[EventType "tourn"]
[EventCountry "ARM"]
[SourceTitle "playchess.com"]
[Source "ChessBase"]
[SourceQuality "1"]
[TimeControl "40/5400+30:1800+30"]

1. d4 {[%emt 0:00:00]} d5 {[%emt 0:00:22]} 2. c4 {[%emt 0:00:00]} e6 {[%emt 0:00:03]} 3. Nc3 {[%emt 0:00:00]} Be7 {[%emt 0:00:04]} 4. cxd5 {[%emt 0:00:01]} exd5 {[%emt 0:00:02]} 5. Bf4 {[%emt 0:00:06]} c6 {[%emt 0:00:06]} 6. e3 {[%emt 0:00:09]} Bf5 {[%emt 0:00:05]} 7. g4 {[%emt 0:01:06]} Be6 {[%emt 0:00:15]} 8. h4 {[%emt 0:00:32]} Nd7 {[%emt 0:00:08]} 9. g5 {[%emt 0:04:25]} h6 {[%emt 0:00:07]} 10. g6 {[%emt 0:02:27]} Ngf6 {[%emt 0:00:05]} 11. Bd3 {[%emt 0:02:39]} O-O {[%emt 0:00:16]} 12. Nge2 {[%emt 0:04:51]} Nh5 {[%emt 0:04:21]} 13. gxf7+ {[%emt 0:03:51]} Bxf7 {[%emt 0:00:06]} 14. Qc2 {[%emt 0:06:35]} Bxh4 {[%emt 0:14:06]} 15. Bf5 {[%emt 0:36:30]} Nb6 {[%emt 0:17:57]} 16. Rh2 {[%emt 0:04:39]} Nc4 {[%emt 0:10:01]} 17. O-O-O {[%emt 0:03:13]} Qe7 {[%emt 0:14:51]} 18. Rdh1 {[%emt 0:14:48]} Nxf4 {[%emt 0:26:55]} 19. Rxh4 {[%emt 0:00:58]} Nxe2+ {[%emt 0:01:22]} 20. Nxe2 {[%emt 0:04:09]} Nd6 {[%emt 0:00:21]} 21. Bh7+ {[%emt 0:04:15]} Kh8 {[%emt 0:00:05]} 22. Nf4 {[%emt 0:03:02]} Ne4 {[%emt 0:03:47]} 23. Bxe4 {[%emt 0:01:50]} dxe4 {[%emt 0:00:16]} 24. Qe2 {[%emt 0:01:17]} Qf6 {[%emt 0:01:01]} 25. Kb1 {[%emt 0:00:20]} Rad8 {[%emt 0:01:35]} 26. Qc2 {[%emt 0:00:39]} Rde8 {[%emt 0:01:09]} 27. Qc5 {[%emt 0:00:28]} b6 {[%emt 0:00:01]} 28. Qa3 {[%emt 0:00:36]} c5 {[%emt 0:00:14]} 29. dxc5 {[%emt 0:00:21]} bxc5 {[%emt 0:01:57]} 30. Qxc5 {[%emt 0:00:05]} Rd8 {[%emt 0:01:26]} 31. Ne2 {[%emt 0:00:54]} Kg8 {[%emt 0:01:22]} 32. Rf4 {[%emt 0:00:43]} Qa6 {[%emt 0:00:43]} 33. Nc1 {[%emt 0:00:23]} Rc8 {[%emt 0:00:24]} 34. Qe5 {[%emt 0:00:32]} Qc4 {[%emt 0:00:36]} 35. Qc3 {[%emt 0:00:27]} Qa4 {[%emt 0:00:30]} 36. b3 {[%emt 0:00:33]} Rxc3 {[%emt 0:00:41]} 37. bxa4 {[%emt 0:00:00]} Rb8+ {[%emt 0:00:18]} 38. Ka1 {[%emt 0:00:11]} Rc4 {[%emt 0:00:45]} 39. Rd1 {[%emt 0:01:20]} Rxa4 {[%emt 0:00:18]} 40. Rd4 {[%emt 0:00:00]} Rxd4 {[%emt 0:00:00]} 41. exd4 {[%emt 0:00:32]} g5 {[%emt 0:03:47]} 42. Rf6 {[%emt 0:01:29]} Rb6 {[%emt 0:07:25]} 43. Rxb6 {[%emt 0:00:46]} axb6 {[%emt 0:00:16]} 44. Ne2 {[%emt 0:00:03]} h5 {[%emt 0:00:22]} 45. Ng3 {[%emt 0:01:08]} e3 {[%emt 0:02:49]} 46. fxe3 {[%emt 0:00:06]} h4 {[%emt 0:00:11]} 47. Ne4 {[%emt 0:01:41]} h3 {[%emt 0:00:07]} 48. Ng3 {[%emt 0:02:48]} h2 {[%emt 0:00:10]} 0-1

[Event "80th ARM-ch 1st League 2019"]
[Site "Yerevan"]
[Date "2019.08.18"]
[Round "1.2"]
[White "Gharibyan, Mamikon"]
[Black "Shahinyan, David"]
[Result "1-0"]
[ECO "A40"]
[WhiteElo "2365"]
[BlackElo "2452"]
[Annotator "ChessBase"]
[PlyCount "73"]
[EventDate "2019.08.18"]
[EventType "tourn"]
[EventCountry "ARM"]
[SourceTitle "playchess.com"]
[Source "ChessBase"]
[SourceQuality "1"]
[TimeControl "40/5400+30:1800+30"]

1. d4 {[%emt 0:00:00]} e6 {[%emt 0:00:00]} 2. c4 {[%emt 0:00:19]} b6 {[%emt 0:00:46]} 3. a3 {[%emt 0:02:25]} Bb7 {[%emt 0:00:41]} 4. Nc3 {[%emt 0:00:29]} f5 {[%emt 0:00:06]} 5. Bf4 {[%emt 0:02:51]} Nf6 {[%emt 0:01:30]} 6. e3 {[%emt 0:01:27]} Be7 {[%emt 0:02:08]} 7. Nh3 {[%emt 0:09:17]} O-O {[%emt 0:02:44]} 8. Bg3 {[%emt 0:01:48]} Qc8 {[%emt 0:09:15]} 9. Nf4 {[%emt 0:04:10]} Nc6 {[%emt 0:00:25]} 10. Bd3 {[%emt 0:07:17]} Nd8 {[%emt 0:08:06]} 11. O-O {[%emt 0:01:16]} d6 {[%emt 0:03:21]} 12. Qe2 {[%emt 0:10:51]} c6 {[%emt 0:18:12]} 13. Nh5 {[%emt 0:13:36]} Ne8 {[%emt 0:06:54]} 14. Bc2 {[%emt 0:11:08]} g6 {[%emt 0:05:32]} 15. Nf4 {[%emt 0:00:42]} Bf6 {[%emt 0:00:26]} 16. Bb3 {[%emt 0:03:48]} e5 {[%emt 0:03:19]} 17. dxe5 {[%emt 0:01:49]} dxe5 {[%emt 0:00:04]} 18. Nd3 {[%emt 0:01:16]} Qe6 {[%emt 0:06:46]} 19. Ba2 {[%emt 0:03:16]} Kh8 {[%emt 0:04:03]} 20. Rfd1 {[%emt 0:02:55]} Qe7 {[%emt 0:02:29]} 21. Rac1 {[%emt 0:01:35]} Nd6 {[%emt 0:03:52]} 22. c5 {[%emt 0:02:28]} N6f7 {[%emt 0:00:42]} 23. cxb6 {[%emt 0:01:00]} axb6 {[%emt 0:00:11]} 24. Qc2 {[%emt 0:00:31]} h5 {[%emt 0:05:16]} 25. h3 {[%emt 0:00:50]} h4 {[%emt 0:01:03]} 26. Bh2 {[%emt 0:00:04]} Bc8 {[%emt 0:02:48]} 27. Nb4 {[%emt 0:01:51]} Bg7 {[%emt 0:03:36]} 28. Nxc6 {[%emt 0:00:42]} Nxc6 {[%emt 0:02:14]} 29. Nd5 Qg5 30. Qxc6 {[%emt 0:01:35]} Rb8 {[%emt 0:01:03]} 31. f4 {[%emt 0:00:29]} Qh6 {[%emt 0:01:03]} 32. Ne7 {[%emt 0:00:52]} Bb7 {[%emt 0:05:19]} 33. Qxg6 {[%emt 0:01:27]} Rbe8 {[%emt 0:01:57]} 34. Qxh6+ {[%emt 0:00:21]} Nxh6 {[%emt 0:00:27]} 35. Ng6+ {[%emt 0:00:05]} Kh7 {[%emt 0:00:00]} 36. Nxf8+ {[%emt 0:00:07]} Rxf8 {[%emt 0:00:03]} 37. Rc7 {[%emt 0:00:19]} 1-0

[Event "80th ARM-ch 1st League 2019"]
[Site "Yerevan"]
[Date "2019.08.18"]
[Round "1.3"]
[White "Gevorgyan, Albert"]
[Black "Baghdasaryan, Vahe"]
[Result "1/2-1/2"]
[ECO "A33"]
[WhiteElo "2175"]
[BlackElo "2373"]
[Annotator "ChessBase"]
[PlyCount "86"]
[EventDate "2019.08.18"]
[EventType "tourn"]
[EventCountry "ARM"]
[SourceTitle "playchess.com"]
[Source "ChessBase"]
[SourceQuality "1"]
[TimeControl "40/5400+30:1800+30"]

1. Nf3 {[%emt 0:00:00]} c5 {[%emt 0:00:08]} 2. c4 {[%emt 0:00:39]} Nc6 {[%emt 0:01:37]} 3. d4 {[%emt 0:00:39]} cxd4 {[%emt 0:01:01]} 4. Nxd4 {[%emt 0:00:11]} Nf6 {[%emt 0:03:26]} 5. Nc3 {[%emt 0:00:27]} e6 {[%emt 0:02:48]} 6. Bf4 {[%emt 0:00:35]} Bc5 {[%emt 0:10:59]} 7. Ndb5 {[%emt 0:00:20]} e5 {[%emt 0:01:28]} 8. Bg5 {[%emt 0:20:08]} O-O {[%emt 0:25:59]} 9. e3 {[%emt 0:01:29]} d6 {[%emt 0:01:18]} 10. a3 {[%emt 0:02:19]} a6 {[%emt 0:10:27]} 11. Bxf6 {[%emt 0:10:15]} gxf6 {[%emt 0:11:05]} 12. b4 {[%emt 0:01:37]} axb5 {[%emt 0:00:14]} 13. bxc5 {[%emt 0:02:08]} dxc5 {[%emt 0:07:26]} 14. cxb5 {[%emt 0:06:47]} Qa5 {[%emt 0:01:31]} 15. Rc1 {[%emt 0:02:10]} Ne7 {[%emt 0:10:09]} 16. Bc4 {[%emt 0:05:04]} Bf5 {[%emt 0:04:37]} 17. O-O {[%emt 0:02:42]} Rfd8 {[%emt 0:03:18]} 18. Qf3 {[%emt 0:00:49]} Qb6 {[%emt 0:00:27]} 19. a4 {[%emt 0:04:22]} Kg7 {[%emt 0:00:50]} 20. h3 {[%emt 0:05:56]} Bd3 {[%emt 0:00:40]} 21. Bxd3 {[%emt 0:01:23]} Rxd3 {[%emt 0:00:03]} 22. Ne4 {[%emt 0:00:12]} Rd5 {[%emt 0:00:15]} 23. Rc4 {[%emt 0:02:49]} f5 {[%emt 0:00:45]} 24. Ng3 {[%emt 0:02:54]} e4 {[%emt 0:00:51]} 25. Qf4 {[%emt 0:05:23]} Ng6 {[%emt 0:00:16]} 26. Nh5+ {[%emt 0:08:57]} Kh8 {[%emt 0:00:01]} 27. Qh6 {[%emt 0:01:25]} Rg8 {[%emt 0:00:02]} 28. Rcc1 {[%emt 0:01:35]} Qd6 {[%emt 0:01:41]} 29. Qg5 {[%emt 0:03:27]} Ra8 {[%emt 0:00:30]} 30. Nf6 {[%emt 0:01:01]} Qe7 {[%emt 0:00:33]} 31. h4 {[%emt 0:01:26]} Rd6 {[%emt 0:00:21]} 32. Nh5 {[%emt 0:00:10]} Qxg5 {[%emt 0:00:27]} 33. hxg5 {[%emt 0:00:04]} b6 {[%emt 0:00:16]} 34. Rfd1 {[%emt 0:00:16]} Rxd1+ {[%emt 0:00:31]} 35. Rxd1 {[%emt 0:00:04]} Ne5 {[%emt 0:00:03]} 36. Rd5 {[%emt 0:03:23]} Ng4 {[%emt 0:01:22]} 37. a5 {[%emt 0:04:08]} bxa5 {[%emt 0:00:33]} 38. Rxc5 {[%emt 0:00:49]} h6 {[%emt 0:00:07]} 39. b6 {[%emt 0:00:52]} Rb8 {[%emt 0:00:20]} 40. Rxa5 {[%emt 0:00:00]} Rxb6 {[%emt 0:00:00]} 41. Ra8+ {[%emt 0:05:50]} Kh7 {[%emt 0:00:22]} 42. Nf6+ {[%emt 0:00:04]} Nxf6 {[%emt 0:00:23]} 43. gxf6 {[%emt 0:00:06]} Rxf6 {[%emt 0:00:05]} 1/2-1/2

[Event "80th ARM-ch 1st League 2019"]
[Site "Yerevan"]
[Date "2019.08.18"]
[Round "1.6"]
[White "Harutjunyan, Gevorg"]
[Black "Hoghmrtsyan, Artur"]
[Result "1-0"]
[ECO "D31"]
[WhiteElo "2455"]
[BlackElo "2317"]
[Annotator "ChessBase"]
[PlyCount "89"]
[EventDate "2019.08.18"]
[EventType "tourn"]
[EventCountry "ARM"]
[SourceTitle "playchess.com"]
[Source "ChessBase"]
[SourceQuality "1"]
[TimeControl "40/5400+30:1800+30"]

1. c4 {[%emt 0:00:00]} e6 {[%emt 0:00:00]} 2. Nc3 {[%emt 0:00:00]} d5 {[%emt 0:00:00]} 3. d4 {[%emt 0:00:00]} Be7 {[%emt 0:00:02]} 4. Nf3 {[%emt 0:00:07]} Nf6 {[%emt 0:00:08]} 5. g3 {[%emt 0:00:17]} O-O {[%emt 0:00:54]} 6. Bg2 {[%emt 0:00:17]} Nbd7 {[%emt 0:01:13]} 7. O-O {[%emt 0:01:38]} dxc4 {[%emt 0:02:26]} 8. e4 {[%emt 0:00:53]} c6 {[%emt 0:00:40]} 9. a4 {[%emt 0:01:11]} b6 {[%emt 0:00:26]} 10. Qe2 {[%emt 0:07:28]} Ba6 {[%emt 0:00:06]} 11. b3 {[%emt 0:01:40]} e5 {[%emt 0:27:48]} 12. dxe5 {[%emt 0:05:34]} Ng4 {[%emt 0:00:26]} 13. Bf4 {[%emt 0:03:21]} Bb4 {[%emt 0:10:46]} 14. Na2 {[%emt 0:07:06]} Qe7 {[%emt 0:20:19]} 15. h3 {[%emt 0:13:03]} Nh6 {[%emt 0:14:58]} 16. Nd4 {[%emt 0:04:11]} Bc5 {[%emt 0:01:59]} 17. Nxc6 {[%emt 0:03:16]} Qe6 {[%emt 0:00:38]} 18. b4 {[%emt 0:12:02]} Qxc6 {[%emt 0:00:33]} 19. bxc5 {[%emt 0:00:08]} Nxc5 {[%emt 0:04:05]} 20. Nb4 {[%emt 0:01:53]} Qe6 {[%emt 0:00:05]} 21. Nxa6 {[%emt 0:00:18]} Nxa6 {[%emt 0:00:03]} 22. Rfc1 {[%emt 0:00:21]} Rac8 {[%emt 0:01:06]} 23. Bf1 {[%emt 0:01:26]} Kh8 {[%emt 0:05:09]} 24. Rxc4 {[%emt 0:01:37]} Nc5 {[%emt 0:00:11]} 25. Rd1 {[%emt 0:02:59]} Ng8 {[%emt 0:00:53]} 26. Rd6 {[%emt 0:01:17]} Qe8 {[%emt 0:00:29]} 27. Qc2 {[%emt 0:01:40]} Ne7 {[%emt 0:02:39]} 28. Be3 {[%emt 0:03:09]} Nc6 {[%emt 0:01:35]} 29. Bxc5 {[%emt 0:05:07]} Nxe5 {[%emt 0:01:17]} 30. Ba3 {[%emt 0:00:42]} Nxc4 {[%emt 0:00:27]} 31. Bxc4 {[%emt 0:00:07]} Qe5 {[%emt 0:00:50]} 32. Rd1 {[%emt 0:07:35]} Rfe8 {[%emt 0:00:19]} 33. Qb3 {[%emt 0:00:57]} Qxe4 {[%emt 0:01:48]} 34. Bxf7 {[%emt 0:02:26]} Red8 {[%emt 0:00:06]} 35. Bb2 {[%emt 0:03:59]} Qe2 {[%emt 0:01:08]} 36. Rxd8+ {[%emt 0:06:11]} Rxd8 {[%emt 0:00:02]} 37. Bd5 {[%emt 0:00:47]} Qd2 {[%emt 0:01:10]} 38. Bf3 {[%emt 0:00:54]} Qe1+ {[%emt 0:00:18]} 39. Kg2 {[%emt 0:02:09]} Rd2 {[%emt 0:00:10]} 40. Bxg7+ {[%emt 0:00:00]} Kxg7 {[%emt 0:00:00]} 41. Qc3+ {[%emt 0:01:44]} Kg6 {[%emt 0:07:23]} 42. Qc6+ {[%emt 0:01:57]} Kg7 {[%emt 0:01:18]} 43. Qc7+ {[%emt 0:00:58]} Kg6 {[%emt 0:02:37]} 44. Bh5+ {[%emt 0:01:35]} Kh6 {[%emt 0:00:48]} 45. Qf4+ {[%emt 0:00:20]} 1-0

[Event "80th ARM-ch 1st League 2019"]
[Site "Yerevan"]
[Date "2019.08.18"]
[Round "1.7"]
[White "Torosyan, Norayr"]
[Black "Khojayan, Vardan"]
[Result "1-0"]
[ECO "B23"]
[WhiteElo "2365"]
[BlackElo "2236"]
[Annotator "ChessBase"]
[PlyCount "75"]
[EventDate "2019.08.18"]
[EventType "tourn"]
[EventCountry "ARM"]
[SourceTitle "playchess.com"]
[Source "ChessBase"]
[SourceQuality "1"]
[TimeControl "40/5400+30:1800+30"]

1. e4 {[%emt 0:00:00]} c5 {[%emt 0:00:00]} 2. Nc3 {[%emt 0:00:00]} e6 {[%emt 0:00:18]} 3. Nge2 {[%emt 0:01:08]} a6 {[%emt 0:01:38]} 4. g3 {[%emt 0:02:03]} b5 {[%emt 0:03:36]} 5. Bg2 {[%emt 0:00:12]} Bb7 {[%emt 0:00:08]} 6. d4 {[%emt 0:00:18]} cxd4 {[%emt 0:08:57]} 7. Nxd4 {[%emt 0:00:09]} Nf6 {[%emt 0:03:40]} 8. a3 {[%emt 0:00:06]} d6 {[%emt 0:01:38]} 9. O-O {[%emt 0:00:05]} Qc7 {[%emt 0:07:07]} 10. Re1 {[%emt 0:00:12]} Be7 {[%emt 0:15:22]} 11. a4 {[%emt 0:00:19]} bxa4 {[%emt 0:13:26]} 12. Rxa4 {[%emt 0:00:13]} O-O {[%emt 0:01:15]} 13. Rb4 {[%emt 0:00:53]} Nfd7 {[%emt 0:07:38]} 14. Rxb7 {[%emt 0:10:58]} Qxb7 {[%emt 0:00:04]} 15. e5 {[%emt 0:00:03]} d5 {[%emt 0:08:21]} 16. Nxe6 {[%emt 0:00:09]} fxe6 {[%emt 0:11:25]} 17. Nxd5 {[%emt 0:00:28]} Kh8 {[%emt 0:08:18]} 18. Nxe7 {[%emt 0:01:01]} Qb4 {[%emt 0:02:16]} 19. Bxa8 {[%emt 0:02:03]} Qxe7 {[%emt 0:00:04]} 20. Qd6 {[%emt 0:00:41]} Qf7 {[%emt 0:00:04]} 21. f4 {[%emt 0:01:50]} Rc8 {[%emt 0:00:33]} 22. c3 {[%emt 0:02:09]} Nf8 {[%emt 0:02:20]} 23. Be3 {[%emt 0:00:35]} Ng6 {[%emt 0:00:07]} 24. Rd1 {[%emt 0:02:49]} h5 {[%emt 0:00:39]} 25. Qb6 {[%emt 0:08:47]} Re8 {[%emt 0:02:22]} 26. Rd8 {[%emt 0:02:19]} Qg8 {[%emt 0:00:12]} 27. Rxe8 {[%emt 0:01:07]} Qxe8 {[%emt 0:00:02]} 28. Be4 {[%emt 0:00:27]} Nf8 {[%emt 0:00:35]} 29. c4 {[%emt 0:00:28]} h4 {[%emt 0:01:05]} 30. c5 {[%emt 0:01:32]} Nfd7 {[%emt 0:01:01]} 31. Qd6 {[%emt 0:00:21]} Qh5 {[%emt 0:00:38]} 32. Kf2 {[%emt 0:00:20]} hxg3+ {[%emt 0:00:11]} 33. hxg3 {[%emt 0:00:03]} Qh2+ {[%emt 0:00:19]} 34. Bg2 {[%emt 0:00:04]} Qh7 {[%emt 0:00:04]} 35. c6 {[%emt 0:00:31]} Qc2+ {[%emt 0:00:24]} 36. Qd2 {[%emt 0:00:04]} Qxd2+ {[%emt 0:01:32]} 37. Bxd2 {[%emt 0:00:06]} Nb6 {[%emt 0:00:07]} 38. Ba5 {[%emt 0:00:29]} 1-0

[Event "80th ARM-ch 1st League 2019"]
[Site "Yerevan"]
[Date "2019.08.19"]
[Round "2.1"]
[White "Khojayan, Vardan"]
[Black "Gevorgyan, Albert"]
[Result "1/2-1/2"]
[ECO "D11"]
[WhiteElo "2236"]
[BlackElo "2175"]
[Annotator "ChessBase"]
[PlyCount "68"]
[EventDate "2019.08.18"]
[EventType "tourn"]
[EventCountry "ARM"]
[SourceTitle "playchess.com"]
[Source "ChessBase"]
[SourceQuality "1"]
[TimeControl "40/5400+30:1800+30"]

1. d4 {[%emt 0:00:00]} d5 {[%emt 0:00:00]} 2. Nf3 {[%emt 0:00:00]} Nf6 {[%emt 0:00:00]} 3. c4 {[%emt 0:00:00]} c6 {[%emt 0:00:16]} 4. e3 {[%emt 0:00:06]} e6 {[%emt 0:00:14]} 5. Bd3 {[%emt 0:01:16]} Nbd7 {[%emt 0:00:22]} 6. O-O {[%emt 0:00:07]} dxc4 {[%emt 0:05:21]} 7. Bxc4 {[%emt 0:00:06]} b5 {[%emt 0:00:07]} 8. Be2 {[%emt 0:03:16]} Bb7 {[%emt 0:00:21]} 9. a4 {[%emt 0:03:18]} a6 {[%emt 0:01:38]} 10. Nbd2 {[%emt 0:01:44]} Be7 {[%emt 0:06:56]} 11. e4 {[%emt 0:04:44]} Qb6 {[%emt 0:08:43]} 12. e5 {[%emt 0:11:24]} Nd5 {[%emt 0:00:16]} 13. Ne4 {[%emt 0:00:07]} h6 {[%emt 0:04:33]} 14. Qb3 {[%emt 0:05:22]} O-O {[%emt 0:03:02]} 15. Bd2 {[%emt 0:04:17]} c5 {[%emt 0:22:16]} 16. axb5 {[%emt 0:03:35]} cxd4 {[%emt 0:04:52]} 17. Ba5 {[%emt 0:23:12]} Qa7 {[%emt 0:00:30]} 18. Bd2 {[%emt 0:02:07]} Nc7 {[%emt 0:12:17]} 19. Nd6 {[%emt 0:06:55]} Bd5 {[%emt 0:03:43]} 20. Qa3 {[%emt 0:08:23]} Qb8 {[%emt 0:04:45]} 21. bxa6 {[%emt 0:05:33]} Nxa6 {[%emt 0:01:58]} 22. Qd3 {[%emt 0:06:39]} Nac5 {[%emt 0:09:36]} 23. Rxa8 {[%emt 0:00:47]} Bxa8 {[%emt 0:00:06]} 24. Qxd4 {[%emt 0:03:18]} Nb3 {[%emt 0:00:33]} 25. Qe3 {[%emt 0:03:46]} Bxf3 {[%emt 0:00:37]} 26. gxf3 {[%emt 0:00:56]} Nxe5 {[%emt 0:01:03]} 27. Ne4 {[%emt 0:01:17]} f5 {[%emt 0:01:47]} 28. Bc3 {[%emt 0:00:56]} Nf7 {[%emt 0:01:49]} 29. Ng3 {[%emt 0:00:37]} f4 {[%emt 0:01:41]} 30. Qxe6 {[%emt 0:00:06]} fxg3 {[%emt 0:00:10]} 31. Qg6 {[%emt 0:00:57]} Ne5 {[%emt 0:04:14]} 32. Qe6+ {[%emt 0:00:02]} Nf7 {[%emt 0:00:11]} 33. Qg6 {[%emt 0:00:02]} Ne5 {[%emt 0:00:33]} 34. Qe6+ {[%emt 0:01:15]} Nf7 {[%emt 0:00:04]} 1/2-1/2

[Event "80th ARM-ch 1st League 2019"]
[Site "Yerevan"]
[Date "2019.08.19"]
[Round "2.2"]
[White "Harutjunyan, Gevorg"]
[Black "Chaqryan, Erik"]
[Result "1-0"]
[ECO "A05"]
[WhiteElo "2455"]
[BlackElo "2105"]
[Annotator "ChessBase"]
[PlyCount "73"]
[EventDate "2019.08.18"]
[EventType "tourn"]
[EventCountry "ARM"]
[SourceTitle "playchess.com"]
[Source "ChessBase"]
[SourceQuality "1"]
[TimeControl "40/5400+30:1800+30"]

1. Nf3 {[%emt 0:00:00]} Nf6 {[%emt 0:00:00]} 2. g3 {[%emt 0:00:00]} g6 {[%emt 0:00:00]} 3. b3 {[%emt 0:00:00]} Bg7 {[%emt 0:00:17]} 4. Bb2 {[%emt 0:00:00]} O-O {[%emt 0:00:25]} 5. Bg2 {[%emt 0:00:09]} d6 {[%emt 0:00:49]} 6. d4 {[%emt 0:00:19]} Nbd7 {[%emt 0:00:33]} 7. O-O {[%emt 0:00:34]} e5 {[%emt 0:00:22]} 8. dxe5 {[%emt 0:00:29]} Ng4 {[%emt 0:00:05]} 9. c4 {[%emt 0:04:41]} Ngxe5 {[%emt 0:01:37]} 10. Nc3 {[%emt 0:00:24]} Nxf3+ {[%emt 0:04:41]} 11. Bxf3 {[%emt 0:00:14]} Ne5 {[%emt 0:02:35]} 12. Bg2 {[%emt 0:00:14]} Re8 {[%emt 0:07:41]} 13. Qd2 {[%emt 0:00:49]} Rb8 {[%emt 0:04:28]} 14. Rad1 {[%emt 0:00:34]} Be6 {[%emt 0:08:59]} 15. Qc1 {[%emt 0:09:30]} Qc8 {[%emt 0:08:55]} 16. f4 {[%emt 0:05:13]} Ng4 {[%emt 0:05:52]} 17. e4 {[%emt 0:01:29]} f5 {[%emt 0:04:02]} 18. Rfe1 {[%emt 0:08:46]} a6 {[%emt 0:10:33]} 19. exf5 {[%emt 0:06:48]} gxf5 {[%emt 0:06:38]} 20. Nd5 {[%emt 0:04:36]} Bxd5 {[%emt 0:07:24]} 21. Bxd5+ {[%emt 0:00:24]} Kh8 {[%emt 0:00:04]} 22. Qc3 {[%emt 0:11:59]} Qd7 {[%emt 0:22:37]} 23. Be6 {[%emt 0:01:21]} Bxc3 {[%emt 0:00:04]} 24. Bxc3+ {[%emt 0:00:08]} Qg7 {[%emt 0:00:03]} 25. Bxg7+ {[%emt 0:00:10]} Kxg7 {[%emt 0:00:01]} 26. Bxf5 {[%emt 0:00:25]} Ne3 {[%emt 0:00:54]} 27. Bd7 {[%emt 0:00:17]} Re7 {[%emt 0:00:54]} 28. Bh3 {[%emt 0:06:05]} Rbe8 {[%emt 0:00:46]} 29. Rd2 {[%emt 0:03:00]} b5 {[%emt 0:02:28]} 30. Rde2 {[%emt 0:06:23]} bxc4 {[%emt 0:00:09]} 31. bxc4 {[%emt 0:00:08]} Kf7 {[%emt 0:00:58]} 32. Bg2 {[%emt 0:01:35]} Nc2 {[%emt 0:00:32]} 33. Rxe7+ {[%emt 0:01:18]} Rxe7 {[%emt 0:00:05]} 34. Rxe7+ {[%emt 0:00:08]} Kxe7 {[%emt 0:00:04]} 35. Be4 {[%emt 0:01:17]} Ne3 {[%emt 0:00:04]} 36. Bxh7 {[%emt 0:04:56]} Nxc4 {[%emt 0:00:07]} 37. Bd3 {[%emt 0:00:09]} 1-0

[Event "80th ARM-ch 1st League 2019"]
[Site "Yerevan"]
[Date "2019.08.19"]
[Round "2.3"]
[White "Davtyan, Artur"]
[Black "Hayrapetyan, Hovik"]
[Result "1/2-1/2"]
[ECO "B68"]
[WhiteElo "2440"]
[BlackElo "2453"]
[Annotator "ChessBase"]
[PlyCount "114"]
[EventDate "2019.08.18"]
[EventType "tourn"]
[EventCountry "ARM"]
[SourceTitle "playchess.com"]
[Source "ChessBase"]
[SourceQuality "1"]
[TimeControl "40/5400+30:1800+30"]

1. e4 {[%emt 0:00:32]} c5 {[%emt 0:00:26]} 2. Nf3 {[%emt 0:00:21]} Nc6 {[%emt 0:02:35]} 3. d4 {[%emt 0:00:05]} cxd4 {[%emt 0:00:04]} 4. Nxd4 {[%emt 0:00:04]} Nf6 {[%emt 0:01:22]} 5. Nc3 {[%emt 0:00:05]} d6 {[%emt 0:00:04]} 6. Bg5 {[%emt 0:02:15]} e6 {[%emt 0:00:30]} 7. Qd2 {[%emt 0:00:27]} a6 {[%emt 0:03:14]} 8. O-O-O {[%emt 0:01:36]} Bd7 {[%emt 0:02:58]} 9. f4 {[%emt 0:00:41]} Be7 {[%emt 0:08:04]} 10. Nf3 {[%emt 0:00:21]} h6 {[%emt 0:06:58]} 11. Bxf6 {[%emt 0:07:38]} gxf6 {[%emt 0:00:23]} 12. Bd3 {[%emt 0:02:07]} Qa5 {[%emt 0:02:17]} 13. Kb1 {[%emt 0:07:55]} O-O-O {[%emt 0:10:04]} 14. Rhe1 {[%emt 0:01:06]} Kb8 {[%emt 0:00:23]} 15. a3 {[%emt 0:22:35]} h5 {[%emt 0:01:12]} 16. Bf1 {[%emt 0:03:07]} Bc8 {[%emt 0:05:09]} 17. Qf2 {[%emt 0:12:14]} Qc5 {[%emt 0:08:25]} 18. Qxc5 {[%emt 0:02:55]} dxc5 {[%emt 0:05:18]} 19. Nd5 {[%emt 0:01:10]} exd5 {[%emt 0:04:50]} 20. exd5 {[%emt 0:00:03]} Bd6 {[%emt 0:02:33]} 21. dxc6 {[%emt 0:00:11]} Bxf4 {[%emt 0:00:34]} 22. Rxd8 {[%emt 0:03:54]} Rxd8 {[%emt 0:00:56]} 23. g3 {[%emt 0:16:34]} Bc7 {[%emt 0:01:20]} 24. Bc4 {[%emt 0:07:47]} Bg4 {[%emt 0:01:14]} 25. Nh4 {[%emt 0:00:29]} bxc6 {[%emt 0:00:30]} 26. Bxf7 {[%emt 0:05:01]} Rd2 {[%emt 0:02:47]} 27. h3 {[%emt 0:00:55]} Bxh3 {[%emt 0:00:17]} 28. Bxh5 {[%emt 0:00:08]} Bxg3 {[%emt 0:01:41]} 29. Re3 {[%emt 0:00:06]} Bxh4 {[%emt 0:00:13]} 30. Rxh3 {[%emt 0:00:03]} Bg5 {[%emt 0:00:49]} 31. Rc3 {[%emt 0:00:16]} Rh2 {[%emt 0:05:40]} 32. Be8 {[%emt 0:01:02]} Re2 {[%emt 0:00:07]} 33. Bxc6 {[%emt 0:00:06]} Be3 {[%emt 0:00:25]} 34. Rb3+ {[%emt 0:01:13]} Kc7 {[%emt 0:00:01]} 35. Bf3 {[%emt 0:00:05]} Re1+ {[%emt 0:00:39]} 36. Ka2 {[%emt 0:00:01]} f5 {[%emt 0:01:28]} 37. Rb7+ {[%emt 0:00:25]} Kd6 {[%emt 0:00:01]} 38. Rb6+ {[%emt 0:00:09]} Ke5 {[%emt 0:00:04]} 39. Rxa6 {[%emt 0:00:07]} Rf1 {[%emt 0:02:51]} 40. Be2 {[%emt 0:00:00]} Rf2 {[%emt 0:00:00]} 41. Bd3 {[%emt 0:00:09]} c4 {[%emt 0:05:12]} 42. Ra5+ {[%emt 0:00:13]} Kf6 {[%emt 0:00:03]} 43. Bxc4 {[%emt 0:00:22]} Rxc2 {[%emt 0:00:01]} 44. Rxf5+ {[%emt 0:01:45]} Kxf5 {[%emt 0:03:04]} 45. Bd3+ {[%emt 0:00:07]} Ke5 {[%emt 0:00:03]} 46. Bxc2 {[%emt 0:00:05]} Kd4 {[%emt 0:00:03]} 47. Kb3 {[%emt 0:00:04]} Kc5 {[%emt 0:00:53]} 48. Ka4 {[%emt 0:00:08]} Kb6 {[%emt 0:00:08]} 49. b4 {[%emt 0:00:04]} Bf4 {[%emt 0:00:09]} 50. Kb3 {[%emt 0:00:04]} Bd6 {[%emt 0:00:02]} 51. Kc4 {[%emt 0:00:04]} Be7 {[%emt 0:00:10]} 52. a4 {[%emt 0:00:03]} Bd6 {[%emt 0:00:15]} 53. a5+ {[%emt 0:00:05]} Ka7 {[%emt 0:00:05]} 54. Be4 {[%emt 0:00:08]} Be7 {[%emt 0:00:05]} 55. Bf3 {[%emt 0:00:11]} Bd6 {[%emt 0:00:05]} 56. b5 {[%emt 0:00:04]} Bc7 {[%emt 0:00:01]} 57. Kb4 {[%emt 0:00:08]} Bd8 {[%emt 0:00:01]} 1/2-1/2